bitfinex-derivatives/quotes_SOLF0:USTF0_20250509
["timestamp","ask_amount","ask_price","bid_price","bid_amount"]
[1746760832864,530.72,162.98,162.91,43.26119509]
[1746760833065,6.1362,162.99,162.91,43.26119509]
[1746760833458,39.134,163.0,162.91,43.26119509]
[1746760833660,45.2701,163.0,162.95,6.1375]
[1746760834268,43.3361,163.0,162.96,6.1373]
[1746760834567,6.1362,162.99,162.91,43.26119509]
[1746760834956,6.1362,162.99,162.94,6.1378]
[1746760835765,43.336,163.0,162.95,6.1377]
[1746760836361,43.336,163.0,162.96,6.1373]
[1746760837163,6.1363,162.99,162.91,43.26119509]
[1746760837369,6.1363,162.99,162.91,37.16]
[1746760837570,37.2,163.0,162.9,1.995]
[1746760837866,2.0727,162.99,162.88,37.12]
[1746760838068,37.12,162.98,162.88,37.12]
[1746760838263,6.1383,162.94,162.89,6.1397]
[1746760838766,6.1383,162.94,162.88,37.12]
[1746760838958,43.3378,162.95,162.9,6.1396]
[1746760839864,37.2,162.95,162.88,37.12]
[1746760840363,43.338,162.95,162.9,6.1393]
[1746760841366,43.338,162.95,162.91,6.1392]
[1746760841567,37.2,162.95,162.91,6.1392]
[1746760842761,37.2,162.95,162.92,6.1387]
[1746760842962,37.2,162.95,162.88,37.12]
[1746760842963,37.2,162.95,162.89,6.10119509]
[1746760843465,39.2727,162.99,162.89,6.10119509]
[1746760843868,6.1369,162.98,162.93,6.1384]
[1746760844569,43.3363,162.99,162.94,6.1379]
[1746760844767,37.2,162.99,162.89,43.30119509]
[1746760845070,6.1367,162.98,162.93,6.1381]
[1746760846670,43.3363,162.99,162.94,6.1381]
[1746760847177,37.2,162.99,162.94,6.10119509]
[1746760847672,37.18,163.02,162.94,6.10119509]
[1746760848971,43.3152,163.02,162.97,6.1368]
[1746760849766,37.18,163.02,162.96,6.1373]
[1746760850272,6.1355,163.01,162.96,6.1373]
[1746760852173,6.136,163.0,162.95,6.1376]
[1746760852573,6.136,163.0,162.94,6.10119509]
[1746760852875,6.1355,163.01,162.94,6.10119509]
[1746760853472,6.1355,163.01,162.96,6.1371]
[1746760854375,6.1355,163.01,162.97,6.1369]
[1746760854669,6.1355,163.01,162.94,6.10119509]
[1746760854875,37.18,163.02,162.94,6.10119509]
[1746760854876,6.1359,163.0,162.94,6.10119509]
[1746760855881,6.1356,163.01,162.94,6.10119509]
[1746760856377,6.1356,163.01,162.97,6.137]
[1746760856675,6.1356,163.01,162.94,6.10119509]
[1746760856883,6.1356,163.01,162.96,6.137]
[1746760857877,6.1359,163.0,162.96,6.137]
[1746760858877,6.1355,163.01,162.96,6.137]
[1746760859181,37.18,163.02,162.96,6.137]
[1746760859879,6.1361,163.0,162.96,6.137]
[1746760860381,6.1362,162.99,162.95,6.1376]
[1746760860577,37.18,163.02,162.91,6.0594]
[1746760860882,37.18,163.02,162.91,2.0901]
[1746760861290,37.18,163.02,162.93,6.1381]
[1746760862176,37.18,163.02,162.91,2.0901]
[1746760862379,37.18,163.02,162.94,6.1381]
[1746760863084,37.18,163.02,162.91,2.0901]
[1746760863085,37.18,163.02,162.95,6.1376]
[1746760863786,37.18,163.02,162.94,6.138]
[1746760864094,37.18,163.02,162.91,2.0901]
[1746760864293,6.1373,162.97,162.93,6.1384]
[1746760864487,37.02,162.97,162.89,37.2]
[1746760864685,37.02,162.97,162.9,6.10119509]
[1746760864886,37.02,162.97,162.96,6.1373]
[1746760866194,37.02,162.97,162.95,6.1376]
[1746760866895,37.02,162.97,162.94,6.1381]
[1746760867096,37.02,162.97,162.9,8.05509509]
[1746760867394,37.02,162.97,162.9,6.10119509]
[1746760867798,37.02,162.97,162.95,6.1376]
[1746760869698,37.02,162.97,162.94,6.138]
[1746760870095,37.02,162.97,162.91,36.94]
[1746760870292,37.02,162.97,162.95,6.1377]
[1746760872393,37.02,162.97,162.96,6.1373]
[1746760873707,37.02,162.97,162.91,36.94]
[1746760874800,37.02,162.97,162.96,6.1373]
[1746760875502,37.02,162.97,162.95,6.1376]
[1746760875701,37.02,162.97,162.91,36.94]
[1746760876100,6.1377,162.95,162.9,6.1396]
[1746760876303,37.02,162.97,162.9,6.1396]
[1746760876602,37.02,162.97,162.9,6.1392]
[1746760876802,37.02,162.97,162.87,44.98119509]
[1746760876999,37.02,162.97,162.9,6.10119509]
[1746760877197,9.95699509,163.04,162.95,6.1374]
[1746760877399,73.94,163.03,162.95,6.1374]
[1746760877805,6.1362,162.99,162.94,6.138]
[1746760878004,73.94,163.03,162.94,6.138]
[1746760878304,6.1366,162.98,162.94,6.138]
[1746760878507,73.94,163.03,162.91,1.9552]
[1746760878703,6.10119509,163.01,162.9,6.10119509]
[1746760879007,6.1373,162.97,162.9,6.1396]
[1746760879306,37.04,162.97,162.9,6.1396]
[1746760880205,6.1378,162.95,162.9,6.1396]
[1746760881405,6.1381,162.94,162.89,6.1399]
[1746760881608,37.04,162.97,162.89,6.1399]
[1746760882503,37.04,162.97,162.88,14.30369509]
[1746760883005,37.04,162.97,162.88,12.24149509]
[1746760883208,38.9662,162.97,162.88,12.24149509]
[1746760883409,6.1391,162.92,162.88,12.24149509]
[1746760883707,38.9662,162.97,162.87,8.1206]
[1746760883907,38.9662,162.97,162.86,8.05639509]
[1746760884107,1.9193,162.96,162.85,73.9]
[1746760884305,1.9193,162.96,162.84,43.0016]
[1746760884504,1.9193,162.96,162.84,36.86]
[1746760884905,1.9193,162.96,162.86,6.10119509]
[1746760885409,6.1387,162.93,162.89,6.14]
[1746760885812,1.9193,162.96,162.86,6.10119509]
[1746760886006,38.9662,162.97,162.86,6.10119509]
[1746760886607,37.04,162.97,162.86,6.10119509]
[1746760886807,37.04,162.97,162.87,2.0728]
[1746760887411,37.04,162.97,162.89,6.10119509]
[1746760887610,37.04,162.97,162.93,6.1382]
[1746760888012,43.177,162.97,162.92,6.1388]
[1746760888513,6.1375,162.96,162.92,6.1388]
[1746760888912,37.04,162.97,162.89,42.94119509]
[1746760889108,37.04,162.97,162.89,6.10119509]
[1746760889515,37.04,162.97,162.9,6.1396]
[1746760889714,6.138,162.95,162.89,6.10119509]
[1746760890010,37.04,162.97,162.89,6.10119509]
[1746760890314,6.138,162.95,162.89,6.10119509]
[1746760890716,6.138,162.95,162.91,6.1391]
[1746760890913,37.04,162.97,162.88,4.0265]
[1746760891109,37.04,162.97,162.87,36.84]
[1746760891418,2.0021,162.96,162.87,36.84]
[1746760891713,6.1382,162.94,162.87,36.84]
[1746760891915,2.0021,162.96,162.87,42.94119509]
[1746760892811,6.1387,162.93,162.87,42.94119509]
[1746760893016,2.0021,162.96,162.87,42.94119509]
[1746760893319,6.1385,162.93,162.89,6.1397]
[1746760893511,2.0021,162.96,162.87,42.94119509]
[1746760893911,37.04,162.97,162.87,42.94119509]
[1746760894312,37.04,162.97,162.88,6.0841]
[1746760894613,6.1374,162.96,162.88,6.0841]
[1746760895711,6.1377,162.95,162.91,6.139]
[1746760895912,6.1377,162.95,162.88,6.0841]
[1746760896317,6.1374,162.96,162.91,6.1391]
[1746760896619,37.04,162.97,162.91,6.1391]
[1746760896920,6.1377,162.95,162.9,6.1393]
[1746760897120,6.1377,162.95,162.88,6.0841]
[1746760897417,37.04,162.97,162.88,6.0841]
[1746760899119,37.04,162.97,162.88,12.18529509]
[1746760899720,43.1772,162.97,162.92,6.1386]
[1746760902422,37.04,162.97,162.91,6.1392]
[1746760902717,37.04,162.97,162.88,12.18529509]
[1746760903215,6.1375,162.96,162.91,6.1389]
[1746760903821,6.1378,162.95,162.91,6.1389]
[1746760905025,37.04,162.97,162.88,12.18529509]
[1746760905223,37.04,162.97,162.91,6.10119509]
[1746760905619,37.04,162.97,162.93,6.1382]
[1746760906221,37.04,162.97,162.94,6.1381]
[1746760906730,37.04,162.97,162.95,6.1374]
[1746760907016,37.04,162.97,162.91,6.10119509]
[1746760907221,6.136,163.0,162.92,36.72]
[1746760907416,6.136,163.0,162.95,6.1376]
[1746760907625,6.1362,162.99,162.95,6.1376]
[1746760907924,6.1362,162.99,162.92,36.72]
[1746760908625,42.9957,163.01,162.92,36.72]
[1746760908918,36.86,163.01,162.94,6.10119509]
[1746760909725,36.86,163.01,162.97,6.137]
[1746760909926,36.86,163.01,162.94,6.10119509]
[1746760910228,42.994,163.05,162.97,6.10119509]
[1746760910416,36.86,163.05,162.97,6.10119509]
[1746760910618,36.86,163.05,162.97,42.80119509]
[1746760910816,6.1344,163.04,162.99,6.1359]
[1746760911629,42.9941,163.05,162.97,42.80119509]
[1746760912127,6.1344,163.04,162.97,42.80119509]
[1746760912628,36.86,163.05,163.0,6.1356]
[1746760912828,36.86,163.05,162.97,42.80119509]
[1746760913321,36.86,163.05,162.99,6.1362]
[1746760913517,36.86,163.05,162.97,6.10119509]
[1746760913721,36.86,163.05,162.96,40.6185]
[1746760914129,6.1353,163.02,162.97,6.1367]
[1746760914926,6.1353,163.02,162.96,40.6185]
[1746760914927,6.1357,163.01,162.96,40.6185]
[1746760915128,36.86,163.05,162.96,3.9585]
[1746760915530,36.86,163.05,162.95,2.0161]
[1746760915531,73.52,163.05,162.95,2.0161]
[1746760915724,1.9069,163.04,162.95,2.0161]
[1746760916726,6.1355,163.01,162.97,6.1369]
[1746760917425,1.9069,163.04,162.95,2.0161]
[1746760917631,6.1352,163.02,162.98,6.1365]
[1746760918035,6.1355,163.01,162.97,6.1369]
[1746760918230,1.9069,163.04,162.95,2.0161]
[1746760918528,6.1354,163.02,162.97,6.1369]
[1746760918728,1.9069,163.04,162.97,6.1369]
[1746760919531,6.1351,163.02,162.97,6.1369]
[1746760920233,6.1351,163.02,162.98,6.1365]
[1746760920930,6.1355,163.01,162.97,6.1369]
[1746760921738,6.1359,163.0,162.97,6.1369]
[1746760921933,1.9069,163.04,162.95,2.0161]
[1746760922631,36.86,163.05,162.95,2.0161]
[1746760922840,36.86,163.05,162.97,6.10119509]
[1746760923342,36.86,163.05,162.98,1.975]
[1746760923542,36.86,163.05,162.99,36.6]
[1746760925743,6.1346,163.04,162.99,42.7359]
[1746760926545,6.1347,163.03,162.99,42.7359]
[1746760926747,6.1347,163.03,162.99,36.6]
[1746760927947,6.1344,163.04,162.99,42.7359]
[1746760928147,6.1344,163.04,162.99,36.6]
[1746760928747,6.1344,163.04,162.99,42.7362]
[1746760929152,36.86,163.05,162.99,36.6]
[1746760929343,36.86,163.05,162.97,6.10119509]
[1746760929744,6.1354,163.02,162.97,12.23799509]
[1746760929951,6.1354,163.02,162.95,38.5761]
[1746760930452,6.1348,163.03,162.98,6.1363]
[1746760930849,6.1348,163.03,162.95,38.5761]
[1746760932054,6.1348,163.03,162.99,6.1361]
[1746760932350,6.1348,163.03,162.95,38.5761]
[1746760932556,36.86,163.05,162.97,6.10119509]
[1746760932951,36.86,163.05,162.98,3.9935]
[1746760933252,36.86,163.05,163.02,6.1349]
[1746760933453,36.86,163.05,162.98,3.9935]
[1746760933754,36.86,163.05,163.0,6.1358]
[1746760933953,42.994,163.05,163.0,6.1358]
[1746760934750,42.994,163.05,163.01,6.1354]
[1746760934951,42.994,163.05,162.98,3.9935]
[1746760935246,42.994,163.05,163.0,6.1357]
[1746760935760,42.994,163.05,163.01,6.1354]
[1746760936048,42.994,163.05,162.98,3.9935]
[1746760936049,36.86,163.05,162.98,3.9935]
[1746760937157,36.86,163.05,163.0,6.1357]
[1746760937456,36.66,163.12,163.0,42.60119509]
[1746760937659,36.66,163.12,163.03,6.10119509]
[1746760939257,6.1322,163.1,163.04,6.134]
[1746760939458,6.1322,163.1,163.03,6.10119509]
[1746760939760,36.66,163.12,163.03,6.10119509]
[1746760939761,6.1318,163.11,163.03,6.10119509]
[1746760940054,36.66,163.12,163.04,3.8304]
[1746760940256,6.1322,163.1,163.05,6.1337]
[1746760940453,36.66,163.12,163.06,6.10119509]
[1746760940952,534.1679,163.18,163.06,6.10119509]
[1746760941163,36.66,163.16,163.06,6.10119509]
[1746760941457,6.131,163.13,163.09,6.10119509]
[1746760942057,6.1307,163.14,163.09,12.23359509]
[1746760942558,36.66,163.16,163.09,6.10119509]
[1746760942753,36.66,163.16,163.1,40.5671]
[1746760943056,8.13079509,163.23,163.1,40.5671]
[1746760943057,356.77796,163.27,163.12,6.10119509]
[1746760943257,36.44,163.26,163.12,6.10119509]
[1746760943650,38.4696,163.25,163.12,6.10119509]
[1746760943856,36.44,163.26,163.15,6.10119509]
[1746760944161,6.1275,163.23,163.17,6.1292]
[1746760944353,72.88,163.26,163.15,42.54119509]
[1746760944647,72.88,163.26,163.15,36.44]
[1746760944849,6.1282,163.21,163.16,6.1295]
[1746760945046,6.1282,163.21,163.15,36.44]
[1746760945958,6.1282,163.21,163.16,6.1297]
[1746760946453,358.95426,163.27,163.15,36.44]
[1746760946454,356.77796,163.27,163.19,6.1286]
[1746760946659,356.77796,163.27,163.17,6.10119509]
[1746760946866,358.68806,163.27,163.17,6.10119509]
[1746760948061,6.1271,163.24,163.19,6.1286]
[1746760948557,358.68806,163.27,163.17,12.23029509]
[1746760948858,36.42,163.25,163.17,6.10119509]
[1746760949260,6.1275,163.23,163.18,6.1289]
[1746760950162,6.1275,163.23,163.19,6.1287]
[1746760951259,6.1269,163.24,163.19,6.1287]
[1746760951461,36.42,163.25,163.2,6.1281]
[1746760951666,36.42,163.25,163.17,6.10119509]
[1746760951854,6.1271,163.24,163.19,6.1284]
[1746760952051,36.42,163.25,163.19,6.1284]
[1746760952961,6.1269,163.24,163.19,6.1284]
[1746760953165,36.42,163.25,163.19,6.1284]
[1746760954062,6.1275,163.23,163.19,6.1284]
[1746760954454,6.1272,163.23,163.19,6.1284]
[1746760954959,36.42,163.25,163.16,38.3956]
[1746760955158,36.42,163.25,163.18,6.10119509]
[1746760955863,42.5465,163.25,163.2,6.128]
[1746760956064,36.42,163.25,163.18,6.10119509]
[1746760956361,36.42,163.25,163.17,1.9428]
[1746760956762,6.1269,163.24,163.19,6.1284]
[1746760957563,6.1272,163.23,163.19,6.1284]
[1746760957765,36.42,163.25,163.2,6.1283]
[1746760958265,6.1272,163.23,163.19,6.1286]
[1746760958666,36.42,163.25,163.17,38.2628]
[1746760959364,6.1273,163.23,163.19,6.1284]
[1746760959562,36.42,163.25,163.19,6.1284]
[1746760959864,6.1271,163.24,163.19,6.1284]
[1746760960066,36.42,163.25,163.19,6.1284]
[1746760960262,36.42,163.25,163.13,36.42]
[1746760960566,6.1285,163.2,163.13,78.84119509]
[1746760960765,6.1285,163.2,163.15,6.1302]
[1746760960965,36.3,163.24,163.15,6.1302]
[1746760961466,6.1286,163.2,163.15,6.1302]
[1746760961667,6.1286,163.2,163.16,6.1297]
[1746760962063,6.128,163.21,163.17,6.1292]
[1746760964369,6.128,163.21,163.16,6.1297]
[1746760964567,6.128,163.21,163.13,78.82119509]
[1746760966370,6.1277,163.22,163.17,6.1291]
[1746760966668,36.42,163.25,163.13,78.82119509]
[1746760966860,6.1271,163.24,163.19,6.1284]
[1746760967259,6.1271,163.24,163.16,6.10119509]
[1746760967461,6.1271,163.24,163.19,6.1284]
[1746760967665,6.1271,163.24,163.16,6.10119509]
[1746760968270,6.1273,163.23,163.16,6.10119509]
[1746760968471,36.42,163.25,163.19,6.1284]
[1746760968670,36.42,163.25,163.16,6.10119509]
[1746760969170,6.1269,163.24,163.16,6.10119509]
[1746760969366,36.42,163.25,163.16,6.10119509]
[1746760969772,42.5465,163.25,163.2,6.128]
[1746760969971,42.5465,163.25,163.16,6.10119509]
[1746760970172,36.42,163.25,163.16,6.10119509]
[1746760970970,42.5465,163.25,163.2,6.128]
[1746760971373,6.1269,163.24,163.2,6.128]
[1746760971675,6.1269,163.24,163.19,6.1286]
[1746760971873,6.1269,163.24,163.16,6.10119509]
[1746760973073,6.1269,163.24,163.19,6.1284]
[1746760973483,6.1269,163.24,163.16,6.10119509]
[1746760974274,6.1269,163.24,163.19,6.1284]
[1746760975277,36.42,163.25,163.18,6.129]
[1746760975475,36.42,163.25,163.16,6.10119509]
[1746760975668,36.42,163.25,163.15,36.22]
[1746760975868,6.1282,163.21,163.17,6.1293]
[1746760976068,36.42,163.25,163.17,6.1293]
[1746760976271,36.42,163.25,163.15,36.22]
[1746760976876,36.42,163.25,163.13,6.10119509]
[1746760977073,42.52119509,163.25,163.12,38.1983]
[1746760977273,42.52119509,163.25,163.12,1.9783]
[1746760977476,6.1293,163.18,163.14,6.1303]
[1746760977772,36.22,163.2,163.12,1.9783]
[1746760978169,6.129,163.19,163.15,6.13]
[1746760978367,36.22,163.2,163.15,6.13]
[1746760978778,6.1288,163.19,163.15,6.13]
[1746760979277,6.1288,163.19,163.16,6.1298]
[1746760979873,42.3484,163.2,163.16,6.1298]
[1746760980074,36.22,163.2,163.17,6.1292]
[1746760980788,36.22,163.2,163.16,6.1297]
[1746760981377,36.22,163.2,163.15,6.1301]
[1746760981581,36.22,163.2,163.12,38.1583]
[1746760981776,6.13,163.16,163.12,38.1583]
[1746760981971,6.13,163.16,163.12,36.18]
[1746760982177,36.22,163.2,163.12,36.18]
[1746760982375,42.3486,163.2,163.12,36.18]
[1746760982780,36.22,163.2,163.12,36.18]
[1746760982983,42.3484,163.2,163.15,6.1299]
[1746760983279,42.3484,163.2,163.12,36.18]
[1746760984081,36.22,163.2,163.12,36.18]
[1746760984278,36.22,163.2,163.13,6.10119509]
[1746760984480,36.22,163.25,163.16,6.10119509]
[1746760985378,36.22,163.25,163.19,6.10119509]
[1746760986385,36.22,163.25,163.21,6.1278]
[1746760989387,36.22,163.25,163.22,6.1275]
[1746760989686,36.22,163.25,163.19,6.10119509]
[1746760989890,36.22,163.25,163.21,6.1277]
[1746760990291,36.22,163.25,163.19,6.10119509]
[1746760991190,36.22,163.25,163.21,6.1277]
[1746760991688,36.22,163.25,163.22,6.1275]
[1746760992586,36.22,163.25,163.19,6.10119509]
[1746760992789,36.22,163.25,163.21,6.1279]
[1746760993090,36.22,163.25,163.19,6.10119509]
[1746760993292,36.22,163.29,163.23,6.1271]
[1746760993591,36.22,163.29,163.19,6.10119509]
[1746760993792,42.345,163.29,163.24,6.1268]
[1746760993991,36.22,163.29,163.24,6.1268]
[1746760994993,6.1254,163.28,163.24,6.1268]
[1746760995997,6.1257,163.27,163.23,6.1271]
[1746760996293,36.22,163.29,163.19,6.10119509]
[1746760996592,6.1254,163.28,163.19,6.10119509]
[1746760996893,36.22,163.29,163.19,6.10119509]
[1746760997780,6.1257,163.27,163.22,6.1276]
[1746760998291,6.1257,163.27,163.19,6.10119509]
[1746760999089,36.22,163.29,163.17,6.1177]
[1746760999290,6.1264,163.26,163.18,36.08]
[1746760999586,6.1264,163.26,163.2,6.128]
[1746760999892,6.1264,163.26,163.18,36.08]
[1746761000095,6.1258,163.27,163.22,6.1275]
[1746761003394,36.22,163.29,163.2,6.128]
[1746761003599,36.22,163.29,163.18,36.08]
[1746761003897,6.1257,163.28,163.23,6.1272]
[1746761004085,36.22,163.29,163.23,6.1272]
[1746761004698,6.1254,163.28,163.23,6.1272]
[1746761004891,6.1254,163.28,163.24,6.1267]
[1746761007196,36.22,163.29,163.25,6.1264]
[1746761007398,36.22,163.29,163.2,6.10119509]
[1746761007796,6.1254,163.28,163.2,6.10119509]
[1746761008703,6.1258,163.27,163.2,6.10119509]
[1746761008901,6.1258,163.27,163.22,6.1273]
[1746761009090,6.1258,163.27,163.2,6.10119509]
[1746761009289,6.1254,163.28,163.2,6.10119509]
[1746761010904,6.1254,163.28,163.18,36.08]
[1746761010905,6.1254,163.28,163.23,6.1268]
[1746761011603,6.1257,163.27,163.22,6.1275]
[1746761012115,6.1257,163.27,163.19,6.10119509]
[1746761013506,6.1257,163.27,163.23,6.1271]
[1746761015006,6.1254,163.28,163.19,6.10119509]
[1746761015213,6.1254,163.28,163.24,6.1268]
[1746761017216,42.345,163.29,163.24,6.1268]
[1746761017621,42.345,163.29,163.25,6.1264]
[1746761018514,36.22,163.29,163.19,6.10119509]
[1746761018817,36.22,163.29,163.22,6.10119509]
[1746761019018,36.06,163.33,163.23,41.9768]
[1746761019218,42.1835,163.33,163.28,6.125]
[1746761019520,42.1835,163.33,163.25,6.10119509]
[1746761020518,36.06,163.33,163.25,6.10119509]
[1746761020719,36.06,163.33,163.23,41.9768]
[1746761021018,36.06,163.33,163.28,6.1253]
[1746761021221,42.1836,163.33,163.28,6.1253]
[1746761022519,6.1238,163.32,163.28,6.1253]
[1746761022820,36.06,163.33,163.28,6.1253]
[1746761023123,36.06,163.33,163.26,12.22689509]
[1746761023319,36.06,163.33,163.23,48.07799509]
[1746761023619,36.06,163.33,163.26,6.126]
[1746761023620,6.1246,163.3,163.26,6.126]
[1746761024220,6.1243,163.31,163.26,6.126]
[1746761024909,6.1243,163.31,163.27,6.1256]
[1746761025220,6.1243,163.31,163.23,48.07799509]
[1746761025416,6.1246,163.3,163.26,6.126]
[1746761025721,36.06,163.33,163.26,6.126]
[1746761025920,6.1243,163.31,163.27,6.1256]
[1746761026821,6.1239,163.32,163.28,6.1253]
[1746761028421,6.1242,163.31,163.28,6.1253]
[1746761028917,6.1242,163.31,163.27,6.1256]
[1746761029423,6.1242,163.31,163.23,48.07799509]
[1746761029621,6.1246,163.3,163.23,48.07799509]
[1746761030022,36.06,163.33,163.23,48.07799509]
[1746761030322,6.1243,163.31,163.23,48.07799509]
[1746761030825,36.06,163.33,163.23,48.07799509]
[1746761031019,6.1239,163.32,163.23,48.07799509]
[1746761031522,6.1239,163.32,163.28,6.1251]
[1746761032527,6.1242,163.31,163.28,6.1251]
[1746761033827,6.1242,163.31,163.27,6.1256]
[1746761034427,6.1242,163.31,163.28,6.1253]
[1746761034928,6.1242,163.31,163.23,48.07799509]
[1746761035127,6.1242,163.31,163.27,6.1254]
[1746761035326,6.1242,163.31,163.23,48.07799509]
[1746761035624,36.06,163.33,163.23,48.07799509]
[1746761036229,42.1838,163.33,163.28,6.125]
[1746761037130,6.1238,163.32,163.28,6.125]
[1746761037330,36.06,163.33,163.29,6.1248]
[1746761037929,42.1837,163.33,163.29,6.1248]
[1746761038131,42.1837,163.33,163.28,6.1252]
[1746761038430,42.1837,163.33,163.23,48.07799509]
[1746761038630,42.1837,163.33,163.28,6.1251]
[1746761039227,6.1239,163.32,163.28,6.1251]
[1746761039529,36.06,163.33,163.23,48.07799509]
[1746761039927,6.1239,163.32,163.23,48.07799509]
[1746761040129,6.1239,163.32,163.27,6.1254]
[1746761040429,6.1239,163.32,163.23,48.07799509]
[1746761040630,6.1239,163.32,163.28,6.1251]
[1746761040927,36.06,163.33,163.23,48.07799509]
[1746761041530,6.1243,163.31,163.26,6.1261]
[1746761042534,6.1247,163.3,163.26,6.1261]
[1746761042728,36.06,163.33,163.23,5.9768]
[1746761042933,6.10119509,163.32,163.2,35.86]
[1746761043133,6.1256,163.28,163.2,35.86]
[1746761043334,35.86,163.31,163.21,6.10119509]
[1746761043529,36.06,163.33,163.24,6.10119509]
[1746761043929,6.1241,163.32,163.27,6.1255]
[1746761044237,36.06,163.33,163.21,6.10119509]
[1746761045239,6.10119509,163.32,163.18,41.8222]
[1746761045424,6.10119509,163.32,163.18,77.6622]
[1746761045623,6.125,163.29,163.23,6.1271]
[1746761045834,42.025,163.29,163.23,6.1271]
[1746761046029,35.9,163.29,163.19,6.10119509]
[1746761046226,6.1266,163.25,163.2,6.1283]
[1746761046432,35.9,163.29,163.18,77.6622]
[1746761047330,42.00119509,163.29,163.18,41.8222]
[1746761047526,6.1273,163.23,163.18,9.955]
[1746761048335,6.1277,163.22,163.18,9.955]
[1746761048730,42.14869509,163.29,163.19,6.1287]
[1746761049235,42.14869509,163.29,163.2,6.1283]
[1746761049436,35.82,163.28,163.18,3.8262]
[1746761049936,6.1267,163.25,163.2,6.1282]
[1746761050537,6.1267,163.25,163.2,6.1283]
[1746761051440,6.1269,163.24,163.2,6.1283]
[1746761052629,6.1265,163.25,163.21,6.1278]
[1746761053035,35.82,163.28,163.21,6.1278]
[1746761053937,6.1264,163.26,163.21,6.1278]
[1746761054734,6.1265,163.25,163.21,6.1278]
[1746761055240,6.1268,163.24,163.21,6.1278]
[1746761055538,6.1268,163.24,163.2,6.1282]
[1746761055842,6.1268,163.24,163.21,6.1279]
[1746761056240,6.1266,163.25,163.21,6.1279]
[1746761056443,6.1266,163.25,163.22,6.1275]
[1746761056637,6.1266,163.25,163.18,9.92739509]
[1746761057241,6.1262,163.26,163.18,9.92739509]
[1746761057541,35.82,163.28,163.18,9.92739509]
[1746761057746,35.82,163.28,163.2,6.1282]
[1746761058039,6.1271,163.24,163.2,6.1282]
[1746761059044,35.82,163.28,163.18,9.92739509]
[1746761059239,35.9,163.28,163.18,9.92739509]
[1746761059742,6.1258,163.27,163.18,9.92739509]
[1746761060542,6.1258,163.27,163.23,6.1272]
[1746761060750,35.9,163.28,163.18,9.92739509]
[1746761060936,35.9,163.28,163.23,6.1269]
[1746761061138,6.1258,163.27,163.23,6.1269]
[1746761061745,42.0254,163.28,163.24,6.1268]
[1746761062044,42.0254,163.28,163.18,9.92739509]
[1746761062045,42.0254,163.28,163.19,35.9]
[1746761062345,35.9,163.28,163.21,6.10119509]
[1746761062545,35.9,163.28,163.22,2.0682]
[1746761063145,101.88218698,163.31,163.24,6.10119509]
[1746761063841,101.88218698,163.31,163.22,37.8282]
[1746761064845,6.1249,163.3,163.25,6.1262]
[1746761065045,101.88218698,163.31,163.25,6.1262]
[1746761065242,101.88218698,163.31,163.22,37.8282]
[1746761065444,6.1256,163.28,163.23,6.1271]
[1746761065840,101.88218698,163.31,163.23,6.1271]
[1746761066247,101.88218698,163.31,163.22,37.8282]
[1746761066549,6.125,163.29,163.22,37.8282]